Cogmind - Beta 15 @@@ ROGUE MODE // 2025.09.07 @ 07:13:01 Player: Godsword Result: Destroyed self with Rocket Launcher Performance ------------- Evolutions (0) 0 Regions Visited (4) 800 Robots Destroyed (4) 20 Value Destroyed (114) 114 Prototype IDs (23) 460 Alien Tech Used (0) 0 Bonus (300) 300 TOTAL SCORE: 1694 Bonus ------- Aligned with FarCom 300 Cogmind --------- Core Integrity 0/250 Matter 268/300 Energy 117/125 System Corruption 31% Temperature Cool (52) Movement Rolling (90) Location -9/Mines Parts ------- > --- POWER (1) -------- Light Ion Engine > --- PROPULSION (2) --- Armored Wheel Armored Wheel > --- UTILITY (2) ------ Medium Storage Unit > --- WEAPON (2) ------- Small Laser Rocket Launcher > --- INVENTORY (10) --- Light Ion Engine Flight Unit Flight Unit Flight Unit Flight Unit Flight Unit Improved Heat Sink Terrain Scan Processor Cloak of Protection Peak State ------------ > --- POWER ------------ Ion Engine > --- PROPULSION ------- Wheel Compact Wheel > --- UTILITY ---------- Improved Terrain Scanner Cloak of Protection > --- WEAPON ----------- Small Laser Light Assault Rifle > --- INVENTORY -------- Flight Unit Flight Unit Flight Unit [Rating: 16] Favorites ----------- Power Ion Engine Engine Ion Engine Power Core Light Nuclear Core Propulsion Wheel Leg Aluminum Leg Wheel Wheel Utility Improved Terrain Scanner Device Improved Terrain Scanner Storage Medium Storage Unit Weapon Light Assault Rifle Energy Gun Small Laser Ballistic Gun Light Assault Rifle Launcher EMP Blaster Build | -11 -10 -10 -10 -9 ------- Run | Yrd Mat Min Exi Min Slots Evolved . | . . . . . Power . | . . . . . Propulsion . | . . . . . Utility . | . . . . . Weapon . | . . . . . Parts Attached 21 | 6 . . 3 12 Power 4 | 1 . . . 3 Engine 3 | 1 . . . 2 Core 1 | . . . . 1 Reactor . | . . . . . Propulsion 6 | 2 . . . 4 Treads . | . . . . . Leg 2 | . . . . 2 Wheel 4 | 2 . . . 2 Hover . | . . . . . Flight . | . . . . . Utility 4 | 1 . . 3 . Device 2 | 1 . . 1 . Storage 2 | . . . 2 . Processor . | . . . . . Hackware . | . . . . . Protection . | . . . . . Artifact . | . . . . . Weapon 7 | 2 . . . 5 Energy Gun 3 | 1 . . . 2 Energy Cannon . | . . . . . Ballistic Gun 2 | 1 . . . 1 Ballistic Cannon . | . . . . . Launcher 2 | . . . . 2 Special Weapon . | . . . . . Impact Weapon . | . . . . . Slashing Weapon . | . . . . . Piercing Weapon . | . . . . . Special Melee Weapon . | . . . . . Unidentified Prototypes . | . . . . . Corrupted Parts 4 | . . . . 4 System Corruption 30 | . . . . 30 Parts Lost 7 | . . . . 7 Power 2 | . . . . 2 Propulsion 2 | . . . . 2 Utility 1 | . . . . 1 Weapon 2 | . . . . 2 Highest Loss Streak 2 | . . . . 2 To Critical Strikes . | . . . . . Average Backups 5 | . 1 3 3 8 Power . | . . . . 1 Propulsion 3 | . 1 3 3 4 Utility 1 | . . . . 2 Weapon . | . . . . . Tool/Special . | . . . . . Unused Backups 10 | . . . . 10 Power 1 | . . . . 1 Propulsion 5 | . . . . 5 Utility 4 | . . . . 4 Weapon . | . . . . . Tool/Special . | . . . . . Average Slot Usage (%) 89 | . 85 85 96 85 Engine 10 | . 14 14 14 5 Core 2 | . . . . 5 Leg 6 | . . . . 14 Wheel 19 | . 28 28 28 9 Device 14 | . 14 14 19 10 Storage 8 | . . . 4 14 Energy Gun 10 | . 14 14 14 5 Ballistic Gun 16 | . 14 14 14 18 Peak Build Rating 16 | 8 8 8 16 13 Average Rating 10 | 5 8 8 11 10 On Entrance 6 | . 8 8 8 10 Naked Turns . | . . . . . Heaviest Build 28 | 8 8 8 28 20 Greatest Support 26 | 26 26 26 26 26 Greatest Overweight (x) 5 | . . . 1 5 Average Overweight (x) . | . . . . . Largest Inventory Capacity 15 | 5 5 5 15 10 Average Capacity 8 | 5 5 5 8 10 Most Carried 10 | . 3 3 6 10 Average Carried 5 | . 2 3 3 8 Final Capacity 10 | 5 5 5 10 10 Final Carried 9 | . 3 3 6 9 Class Distribution -------------------- 59% | Mutant 24% | Scavenger-Skirmisher 8% | Scavenger-Mutant 7% | Skirmisher Dominant Class ---------------- Mutant | -10/Materials Mutant | -10/Mines Mutant | -10/Exiles Scavenger-Skirmisher | -9/Mines Resources | -11 -10 -10 -10 -9 ----------- Run | Yrd Mat Min Exi Min Matter Collected 483 | 147 118 . 30 188 Remotely . | . . . . . Salvage Created 217 | 99 . . . 118 Parts 12 | 6 . . . 6 Haulers Intercepted . | . . . . . Recyclers Shooed . | . . . . . Parts Field Recycled . | . . . . . Retrieved Matter . | . . . . . Parts Self-Destructed . | . . . . . Prevented . | . . . . . Kills | -11 -10 -10 -10 -9 ------- Run | Yrd Mat Min Exi Min Combat Hostiles Destroyed 6 | . . . . 6 Guns 2 | . . . . 2 AOE 4 | . . . . 4 Classes Destroyed 4 | 2 . . . 2 Tunneler 1 | 1 . . . . Recycler 1 | 1 . . . . Grunt 2 | . . . . 2 Assembled 4 | . . . . 4 Best Kill Streak 2 | 2 . . . 2 Combat Bots Only 2 | . . . . 2 Max Kills in Single Turn 2 | 1 . . . 2 Gunslinging . | . . . . . Exploded 2 | . . . . 2 Melee . | . . . . . Uniques/NPCs Destroyed . | . . . . . Combat | -11 -10 -10 -10 -9 -------- Run | Yrd Mat Min Exi Min Hostile Shots Fired 68 | . . . . 68 Missed 12 | . . . . 12 Hits 56 | . . . . 56 Projectile 56 | . . . . 56 Critical Strikes 1 | . . . . 1 Part Disruptions 3 | . . . . 3 Damage Taken 779 | . . . . 779 Core 263 | . . . . 263 Absorbed by Shields . | . . . . . Core Remaining (%) 100 | 100 . . . . Volleys Fired 36 | 5 . . . 31 Largest 2 | 2 . . . 2 Hottest 85 | 60 . . . 85 Shots Fired 66 | 10 . . . 56 Gun 59 | 10 . . . 49 Cannon . | . . . . . Launcher 7 | . . . . 7 Special . | . . . . . Kinetic 50 | 5 . . . 45 Thermal 9 | 5 . . . 4 Explosive 2 | . . . . 2 Electromagnetic 5 | . . . . 5 Robot Hit Streak 4 | 2 . . . 4 Robot Miss Streak 5 | 3 . . . 5 Penetration Max . | . . . . . Secondary Targets . | . . . . . Shots Hit Robots 23 | 3 . . . 20 Core Hits 17 | 3 . . . 14 Critical Kills 2 | 1 . . . 1 Critical Parts Destroyed . | . . . . . Critical Strikes 2 | 1 . . . 1 Destroy 2 | 1 . . . 1 Melee Attacks . | . . . . . Impact . | . . . . . Slashing . | . . . . . Piercing . | . . . . . Sneak Attacks . | . . . . . Combat Hostiles . | . . . . . Follow-up Attacks . | . . . . . Damage Inflicted 368 | 27 . . . 341 Guns 170 | 27 . . . 143 Cannons . | . . . . . Explosions 198 | . . . . 198 Melee . | . . . . . Ramming . | . . . . . Kinetic 160 | 17 . . . 143 Thermal 10 | 10 . . . . Explosive 95 | . . . . 95 Electromagnetic 103 | . . . . 103 Impact . | . . . . . Slashing . | . . . . . Piercing . | . . . . . Highest Corruption 31 | . . . . 31 Average Corruption 29 | . . . . 29 Corruption Purged . | . . . . . Corruption Blocked . | . . . . . Effects 31 | . . . . 31 Message Errors 7 | . . . . 7 Matter Fused 5 | . . . . 5 Heat Flow Errors 3 | . . . . 3 Energy Discharges 3 | . . . . 3 Parts Rejected 2 | . . . . 2 Data Loss (minor) 3 | . . . . 3 Data Loss (major) 2 | . . . . 2 Misdirections 3 | . . . . 3 Weapon Failures 3 | . . . . 3 Overload Shots . | . . . . . Overflow Damage 23 | . . . . 23 Projectiles . | . . . . . Explosions 23 | . . . . 23 Melee . | . . . . . Knockbacks . | . . . . . Impact . | . . . . . Kinetic . | . . . . . Secondary . | . . . . . Self-Inflicted Damage 129 | . . . . 129 Shots 6 | . . . . 6 Rammed 1 | . . . . 1 Targets Rammed 1 | . . . . 1 Kicked . | . . . . . Crushed . | . . . . . Highest Temperature 366 | 40 . . . 366 Average Temperature 78 | 19 . . . 84 Received Heat Transfer 835 | . . . . 835 Siege Activations . | . . . . . Martial Activations . | . . . . . Shielding Activations . | . . . . . Robots Disrupted . | . . . . . Combat Hostiles . | . . . . . Robots Corrupted . | . . . . . Combat Hostiles . | . . . . . Parts Fried . | . . . . . Impact Corruptions . | . . . . . Robots Melted . | . . . . . Combat Hostiles . | . . . . . Parts Melted . | . . . . . Heat Transferred 25 | 25 . . . . Parts Sabotaged . | . . . . . Parts Stolen . | . . . . . Parts Stripped . | . . . . . Power Chain Reactions . | . . . . . Alert | -11 -10 -10 -10 -9 ------- Run | Yrd Mat Min Exi Min Maximum Alert Level . | . . . . . Low Security (%) 100 | 100 100 100 . 100 Level 1 . | . . . . . Level 2 . | . . . . . Level 3 . | . . . . . Level 4 . | . . . . . Level 5 . | . . . . . High Security . | . . . . . Max Security . | . . . . . Peak Influence 50 | 10 . . . 50 Initial . | . . . . . Average 5 | 3 . . . 6 Influence Increases 103 | 10 . . . 93 Destroy 0b10 Robot/C 40 | . . . . 40 Destroy 0b10 Robot/NC 10 | 10 . . . . Destroy Leader 10 | . . . . 10 Disable Machine 30 | . . . . 30 Destroy Structure 13 | . . . . 13 Influence Decreases 98 | 10 . . . 88 Time Decay 78 | 10 . . . 68 Lost Part 20 | . . . . 20 Squads Dispatched 1 | . . . . 1 Investigation . | . . . . . Extermination . | . . . . . Reinforcement 1 | . . . . 1 Assault . | . . . . . Garrison . | . . . . . Intercept . | . . . . . Searches Triggered . | . . . . . Construction Impeded 1 | . . . . 1 Haulers Reinforced . | . . . . . Active Scanning Responses . | . . . . . Cargo Convoy Interrupts . | . . . . . Stealth | -11 -10 -10 -10 -9 --------- Run | Yrd Mat Min Exi Min Distress Signals . | . . . . . Communications Jammed . | . . . . . Distress Signals . | . . . . . Times Spotted 14 | . . . . 14 Peak Tracking Total 5 | . . . . 5 Tactical Retreats 2 | . . . . 2 Traps | -11 -10 -10 -10 -9 ------- Run | Yrd Mat Min Exi Min Traps Triggered . | . . . . . Indirectly . | . . . . . Trap Hack Attempts . | . . . . . Triggered . | . . . . . Disarmed . | . . . . . Reprogrammed . | . . . . . Reused . | . . . . . Traps Extracted . | . . . . . Installed . | . . . . . Triggered . | . . . . . Machines | -11 -10 -10 -10 -9 ---------- Run | Yrd Mat Min Exi Min Machines Disabled 2 | . . . . 2 Max in Single Turn 1 | . . . . 1 Machines Repaired . | . . . . . Machines Dismantled . | . . . . . Machines Sabotaged . | . . . . . Overloaded Fab Kills . | . . . . . Hacking | -11 -10 -10 -10 -9 --------- Run | Yrd Mat Min Exi Min Machines Accessed 1 | . . . 1 . Terminals . | . . . . . Fabricators . | . . . . . Repair Stations . | . . . . . Recycling Units . | . . . . . Scanalyzers . | . . . . . Garrison Access . | . . . . . Total Hacks 1 | . . . 1 . Successful 1 | . . . 1 . Failed . | . . . . . Catastrophic . | . . . . . Database Lockouts . | . . . . . Manual 1 | . . . 1 . Terminals . | . . . . . Fabricators . | . . . . . Repair Stations . | . . . . . Recycling Units . | . . . . . Scanalyzers . | . . . . . Garrison Access . | . . . . . Terminal Hacks 1 | . . . 1 . Proto ID Catalog 1 | . . . 1 . Fabricator Hacks . | . . . . . Repair Station Hacks . | . . . . . Recycling Unit Hacks . | . . . . . Scanalyzer . | . . . . . Garrison Access Hacks . | . . . . . Unauthorized Hacks . | . . . . . Terminals . | . . . . . Fabricators . | . . . . . Repair Stations . | . . . . . Recycling Units . | . . . . . Scanalyzers . | . . . . . Garrison Access . | . . . . . Data Cores Recovered . | . . . . . Used . | . . . . . Hacking Detections . | . . . . . Full Trace Events . | . . . . . Feedback Events . | . . . . . Feedback Blocked . | . . . . . Robot Schematics Acquired . | . . . . . Robots Built . | . . . . . Authchips . | . . . . . Time . | . . . . . Total Robot Build Rating . | . . . . . Part Schematics Acquired . | . . . . . Parts Built . | . . . . . Authchips . | . . . . . Time . | . . . . . Total Part Build Rating . | . . . . . Parts Repaired . | . . . . . Time . | . . . . . Parts Recycled . | . . . . . Recycled Matter . | . . . . . Retrieved Matter . | . . . . . Retrieved Components . | . . . . . Parts Scanalyzed . | . . . . . Part Schematics Acquired . | . . . . . Parts Damaged . | . . . . . Bothacking | -11 -10 -10 -10 -9 ------------ Run | Yrd Mat Min Exi Min Used RIF Installer . | . . . . . Robots Hacked . | . . . . . Non-combat . | . . . . . Combat . | . . . . . Robot Hacks Applied . | . . . . . Relay Couplers Released . | . . . . . Fabnet Peak Effective % . | . . . . . Robots Rewired . | . . . . . Allies Hacked . | . . . . . Hacks Repelled . | . . . . . Allies | -11 -10 -10 -10 -9 -------- Run | Yrd Mat Min Exi Min Total Allies . | . . . . . Largest Group . | . . . . . Highest-Rated Group . | . . . . . Highest-Rated Ally . | . . . . . Total Orders . | . . . . . Ally Attacks . | . . . . . Total Damage . | . . . . . Kills . | . . . . . Allies Corrupted . | . . . . . Allies Melted . | . . . . . Intel | -11 -10 -10 -10 -9 ------- Run | Yrd Mat Min Exi Min Active Infowar (turns) 894 | 14 46 54 441 339 Terrain 894 | 14 46 54 441 339 Cloaking 1 | . . . 1 . Robot Analysis Total . | . . . . . Derelict Logs Recovered . | . . . . . Drone Launches . | . . . . . Drone Recoveries . | . . . . . Exploration | -11 -10 -10 -10 -9 ------------- Run | Yrd Mat Min Exi Min Turns Passed 1067 | 45 46 54 441 481 Spaces Moved 816 | 27 48 60 389 292 Core 8 | 3 . . . 5 Treads . | . . . . . Legs 177 | . . . . 177 Wheels 631 | 24 48 60 389 110 Hover . | . . . . . Flight . | . . . . . Fastest Speed 50 | 50 90 90 90 90 Average Speed 102 | 84 90 90 94 119 Slowest Speed 300 | 90 90 90 105 300 Overloaded Moves . | . . . . . Propulsion Burnouts . | . . . . . Robots Hopped . | . . . . . Potential Cave-ins . | . . . . . Cave-ins Triggered . | . . . . . Exploration Rate (%) 32 | 3 10 21 73 54 Regions Visited 4 Branch Regions 3 Pre-discovered Areas . | . . . . . Known Exits Taken . | . . . . . Unknown Exits Taken 4 | 1 1 1 1 . Scrap Searched 2 | . . . . 2 Spaces Dug . | . . . . . Terrain Destroyed 18 | . . . . 18 Melee . | . . . . . Projectile . | . . . . . AOE 18 | . . . . 18 Terrain Rammed . | . . . . . Walls Destroyed . | . . . . . Machines Disabled . | . . . . . Actions | -11 -10 -10 -10 -9 --------- Run | Yrd Mat Min Exi Min Total 980 | 37 50 59 461 373 Wait 88 | . . . 67 21 Move 812 | 26 47 59 388 292 Hop . | . . . . . Pick Up 14 | . 3 . 3 8 Fast Attach 16 | 6 . . 1 9 Attach 1 | . . . . 1 Detach . | . . . . . Swap 5 | . . . 2 3 Drop 7 | . . . . 7 Fire 36 | 5 . . . 31 Melee . | . . . . . Ram 1 | . . . . 1 Kick . | . . . . . Crush . | . . . . . Escape Stasis . | . . . . . Rewire . | . . . . . Trap . | . . . . . Miscellaneous . | . . . . . Route ------- -11/Scrapyard -10/Materials -10/Mines -10/Exiles -9/Mines (discovered 1 exit: [*Mat]) History --------- Turn | Location | Event 15 | -11/Scrapyard | Discovered new exit (range 15) 46 | -11/Scrapyard | Entered Materials 47 | -10/Materials | Discovered new exit (range 15) 92 | -10/Materials | Entered Mines 142 | -10/Mines | Deemed a non-threat by the Exiles lab entrance 142 | -10/Mines | Discovered new exit (range 5) 146 | -10/Mines | Entered Exiles 168 | -10/Exiles | Met 8R-AWN 184 | -10/Exiles | Met EX-HEX 209 | -10/Exiles | Met EX-BIN 219 | -10/Exiles | Aligned with FarCom system 220 | -10/Exiles | Given EX-Vault access code 241 | -10/Exiles | Opened EX-Vault 250 | -10/Exiles | Found Cloak of Protection 271 | -10/Exiles | Warned to stay clear of 0b10 Research branches 309 | -10/Exiles | Build established: Mutant 440 | -10/Exiles | Met EX-DEC 576 | -10/Exiles | Discovered new exit (range 12) 587 | -10/Exiles | Left Exiles lab with Cloak of Protection 587 | -10/Exiles | Entered Mines 592 | -9/Mines | Met a Derelict bent on vengeance 616 | -9/Mines | System corruption reached 10% 641 | -9/Mines | System corruption reached 30% 672 | -9/Mines | Discovered new exit (range 10) 743 | -9/Mines | Assembled infested the area 748 | -9/Mines | Assisted by a Guerilla fighting off Assembled 912 | -9/Mines | Core integrity fell below 50% 1049 | -9/Mines | Core integrity fell below 20% 1068 | -9/Mines | Destroyed self with Rocket Launcher Last Messages --------------- 01044_ Lgt. Deuterium Engine destroyed. 01047_ Acquired Sml. Laser. 01048_ K-01 Serf collects debris. 01049_ Acquired 10 matter. 01051_ K-01 Serf collects debris. 01057_ System corrupted: Matter fused (-5). 01061_ K-01 Serf destroyed. 01061_ Searching scrap... 01061_ Found Sml. Matter Pod. 01061_ Found Field Recycling Unit. 01061_ Found Unknown Launcher. 01061_ Found Lrg. Storage Unit. 01061_ Found Authchip [R/Combat]. 01061_ Found 48 Matter. 01062_ Acquired 15 matter. 01063_ Acquired Unknown Launcher. 01063_ Identified Rocket Launcher. 01068_ as-27588 destroyed. 01068_ Destroyed Asb. F-torch. 01068_ as-10254 destroyed. Map ----- +----------------------------------------------------+ | | | | | | | | | | | | | | | | | | | | | | | | | | | | | | | | | | | | | ??????????????????????????????????????? | | ??????????????????????????????????????? | | ??????????????????????????????????????? | | ??????????????????????????????????????? | | ????????????????????????????????????### | | ????????????########???????????????## | | ????????????# ##???????????????# | | ????????????# @% #??????######???# | | ????????????#! #?????## ###?# | | ??????????#?# < % #####?## ### | | ???????????# # #?# ###+ | | ???????????# ###= !% | | ???????????# a % % [ | | ???????????# = = | | ???????????## ### ##k## ###% | | ????????????####?# ## ## #?#! | | ?????????????????# ## ## ### ## | | ?????????????????# ## ###### | | ??????????#??????# ####### ##???## | | ?????????????????# #?????# %=###??# | | ?????????#????#??# #?????##% ##?## | | ???????#?????#???# #??????#= ##?## | | ?????????????????# ##?????# ###? | | ?????#???????????# #?#????## ## | | ???????#??#?#????# #?????#?## # | | ????????????###### #?????#### | | ????????????# #?#????#?## | | ????????????# ######?#???????### | | ???????????## #????#????#?#????## | | ?????????#?## #??#??#??????????## | | ????????????# #?????????????????# """ | | ??????????### #???#??#??????????# """ | +----------------------------------------------------+ Best States ------------- Heat Dissipation 25 Energy Generation 14 Energy Capacity 250 Matter Stores 300 Matter Capacity 300 Sight Range 16 Terrain Scan Range 16 Terrain Scan Density 10 Evasion (%) 55 Item Schematics ----------------- None Robot Schematics ------------------ None Fabricated ------------ Nothing Repaired ---------- Nothing Alien Tech Used ----------------- None Achievements -------------- None Challenges ------------ None Game ------ Seed EZMODE Manual? 1 Play Time 00:10:07 Cumulative 17.7 hours Start 2025.09.07 @ 07:04:46 End 2025.09.07 @ 07:13:01 Sessions 1 Manual Loads 0 Difficulty Rogue Special Mode None Game No. 53 Rogue 53 Adventurer 0 Explorer 0 Win Type - Total 0 Types 0/0/0/0/0/0/0/0/0/0 Lore% 17 Gallery% 22 Achievement% 25 Wizard Run 0 Options --------- Layout 2 ASCII 0 Keyboard 0 Movement Mouse Keybinds 0 Fullscreen 2 Font 24/Smallcaps Map View 50x44 Zoom Use 0% Tactical HUD 1 Map Filters NONE Filters NONE Steam 1 RUN: 1f9e344e-817f-4a24-9f4d-6e62962c5db3